bitfinex-derivatives/quotes_SOLF0:USTF0_20250720
["timestamp","ask_amount","ask_price","bid_price","bid_amount"]
[1753002104179,4.84421748,181.18,181.13,5.5175]
[1753002104383,1.79,181.21,181.15,3.13]
[1753002104982,1.79,181.19,181.11,3.13]
[1753002105482,6.63421748,181.17,181.11,3.13]
[1753002106083,1.79,181.16,181.12,8.648]
[1753002106380,1.79,181.15,181.12,3.13]
[1753002106989,6.63421748,181.17,181.13,3.13]
[1753002107288,1.79,181.19,181.1,3.13]
[1753002107878,6.63421748,181.22,181.1,3.13]
[1753002108083,1.79,181.22,181.11,3.13]
[1753002108287,1.79,181.22,181.19,5.516]
[1753002108483,1.79,181.22,181.19,3.13]
[1753002109089,4.84421748,181.24,181.13,4.84421748]
[1753002109283,7.3042,181.25,181.14,3.13]
[1753002109686,1.79,181.25,181.14,3.13]
[1753002110086,7.3044,181.25,181.2,5.5155]
[1753002110390,6.63421748,181.26,181.21,3.13]
[1753002110592,6.63421748,181.26,181.14,3.13]
[1753002110780,1.79,181.28,181.16,4.84421748]
[1753002110983,1.79,181.28,181.21,3.13]
[1753002111186,10.24916775,181.3,181.21,3.13]
[1753002111388,2.94646775,181.3,181.21,3.13]
[1753002111591,16.64,181.34,181.21,3.13]
[1753002111592,1.79,181.27,181.21,3.13]
[1753002112491,1.79,181.29,181.21,3.13]
[1753002112890,1.79,181.29,181.25,5.5139]
[1753002113096,1.79,181.29,181.25,8.6439]
[1753002113289,1.79,181.29,181.26,3.13]
[1753002113798,1.79,181.34,181.23,3.13]
[1753002114091,2.94646775,181.33,181.25,3.13]
[1753002114295,7.3021,181.32,181.28,3.13]
[1753002114592,1.79,181.31,181.29,3.13]
[1753002114894,7.3024,181.31,181.29,3.13]
[1753002115194,7.3024,181.31,181.27,8.6434]
[1753002115493,1.79,181.3,181.27,3.13]
[1753002116092,1.79,181.29,181.27,3.13]
[1753002116289,2.94646775,181.31,181.23,3.13]
[1753002116493,1.79,181.31,181.23,3.13]
[1753002116893,1.79,181.31,181.22,2.94646775]
[1753002116894,1.79,181.31,181.26,3.13]
[1753002117087,1.79,181.31,181.23,3.13]
[1753002117494,1.79,181.31,181.17,13.97966775]
[1753002117495,7.3015,181.34,181.3,3.13]
[1753002117688,1.79,181.33,181.3,3.13]
[1753002118897,1.79,181.38,181.28,2.94646775]
[1753002119099,1.79,181.38,181.29,3.16]
[1753002119797,1.79,181.37,181.29,3.16]
[1753002120200,2.94646775,181.36,181.29,3.16]
[1753002120494,1.79,181.35,181.29,3.16]
[1753002121000,1.79,181.35,181.29,8.6727]
[1753002121393,2.94646775,181.36,181.3,3.16]
[1753002121394,1.79,181.33,181.3,3.16]
[1753002121594,1.79,181.33,181.29,3.16]
[1753002121794,1.79,181.33,181.27,3.16]
[1753002121795,1.79,181.3,181.27,3.16]
[1753002122096,11.0186,181.42,181.26,3.16]
[1753002122097,1.79,181.36,181.26,3.16]
[1753002122297,2.94646775,181.37,181.33,5.5116]
[1753002122298,5.5106,181.37,181.33,5.5116]
[1753002122504,370.76,181.47,181.29,3.16]
[1753002122795,5.5108,181.37,181.32,5.5118]
[1753002123002,1.79,181.38,181.3,3.16]
[1753002123499,1.79,181.37,181.34,3.16]
[1753002123993,2.94646775,181.39,181.35,3.16]
[1753002124192,2.94646775,181.41,181.31,3.16]
[1753002124494,1.79,181.42,181.31,2.94646775]
[1753002124704,1.79,181.42,181.32,3.16]
[1753002125094,5.5095,181.41,181.32,3.16]
[1753002125296,4.73646775,181.42,181.32,3.16]
[1753002125698,7.2997,181.4,181.37,3.16]
[1753002126094,1.79,181.44,181.37,3.16]
[1753002126399,1.79,181.44,181.41,3.16]
[1753002126901,7.2987,181.44,181.41,3.16]
[1753002127102,1.79,181.43,181.34,2.94646775]
[1753002127396,7.2988,181.43,181.39,5.5098]
[1753002127592,1.79,181.43,181.4,3.16]
[1753002127795,1.79,181.43,181.41,3.16]
[1753002127999,7.2987,181.43,181.41,3.16]
[1753002128193,2.94646775,181.44,181.28,13.97266775]
[1753002128495,5.5091,181.42,181.38,5.5101]
[1753002128703,2.94646775,181.45,181.33,2.94646775]
[1753002129002,7.2992,181.42,181.38,3.16]
[1753002129197,1.79,181.41,181.38,3.16]
[1753002129693,1.79,181.43,181.4,3.16]
[1753002130291,4.73646775,181.46,181.41,3.16]
[1753002130600,2.94646775,181.46,181.41,3.16]
[1753002130902,1.79,181.44,181.41,3.16]
[1753002131200,1.79,181.42,181.38,3.16]
[1753002131400,1.79,181.41,181.38,3.16]
[1753002131603,1.79,181.41,181.39,3.16]
[1753002131900,2.94646775,181.44,181.39,3.16]
[1753002132101,1.79,181.42,181.39,3.16]
[1753002133093,7.2992,181.42,181.39,3.16]
[1753002133298,1.79,181.42,181.39,3.16]
[1753002133701,7.299,181.42,181.39,3.16]
[1753002134102,2.94646775,181.44,181.34,3.16]
[1753002134504,1.79,181.43,181.34,3.16]
[1753002135403,7.299,181.43,181.34,3.16]
[1753002136201,7.299,181.43,181.4,3.16]
[1753002136505,5.509,181.42,181.4,3.16]
[1753002136701,1.79,181.43,181.4,3.16]
[1753002137097,7.2989,181.43,181.4,3.16]
[1753002137302,1.79,181.43,181.4,3.16]
[1753002137504,7.2991,181.42,181.4,3.16]
[1753002138605,5.5091,181.42,181.41,3.16]
[1753002139099,5.5087,181.43,181.41,3.16]
[1753002139306,2.94646775,181.45,181.31,4.14690091]
[1753002139507,2.94646775,181.45,181.28,13.97266775]
[1753002139508,1.79,181.44,181.36,3.16]
[1753002139703,5.509,181.42,181.36,3.16]
[1753002139902,5.509,181.42,181.39,3.16]
[1753002140105,5.509,181.42,181.41,3.16]
[1753002140403,7.2988,181.43,181.41,3.16]
[1753002141804,5.509,181.42,181.41,3.16]
[1753002142809,1.79,181.42,181.38,3.16]
[1753002143013,4.73646775,181.4,181.31,3.16]
[1753002143417,1.79,181.46,181.31,3.16]
[1753002143606,1.79,181.43,181.36,3.16]
[1753002144104,1.79,181.45,181.36,3.16]
[1753002144305,5.5086,181.44,181.4,5.5094]
[1753002144600,5.5086,181.44,181.42,3.16]
[1753002144806,5.5086,181.44,181.4,5.5094]
[1753002145002,7.2988,181.43,181.4,3.16]
[1753002145204,1.79,181.46,181.37,2.94646775]
[1753002145408,1.79,181.46,181.38,3.16]
[1753002145606,1.79,181.43,181.4,8.6694]
[1753002145808,2.94646775,181.45,181.4,3.16]
[1753002146111,1.79,181.42,181.4,8.6696]
[1753002146404,1.79,181.42,181.35,2.94646775]
[1753002146405,2.94646775,181.45,181.35,2.94646775]
[1753002146605,1.79,181.44,181.35,2.94646775]
[1753002146815,1.79,181.44,181.43,3.16]
[1753002147016,7.2982,181.45,181.43,3.16]
[1753002148416,1.79,181.44,181.43,3.16]
[1753002149118,7.2984,181.44,181.41,5.5091]
[1753002149318,7.2984,181.44,181.42,3.23]
[1753002149910,1.79,181.44,181.42,3.23]
[1753002150110,1.79,181.43,181.42,3.23]
[1753002151325,1.79,181.43,181.35,3.23]
[1753002151627,1.79,181.38,181.36,3.23]
[1753002151822,5.5101,181.39,181.36,3.23]
[1753002152020,1.79,181.39,181.37,3.23]
[1753002152219,1.79,181.39,181.37,8.7405]
[1753002152622,1.79,181.39,181.37,3.23]
[1753002152821,2.94646775,181.4,181.39,3.23]
[1753002153025,1.79,181.42,181.33,3.23]
[1753002153026,4.73646775,181.42,181.33,3.23]
[1753002153623,5.5094,181.41,181.33,3.23]
[1753002154023,4.73646775,181.42,181.33,3.23]
[1753002154724,2.94646775,181.42,181.33,3.23]
[1753002154927,1.79,181.41,181.33,3.23]
[1753002155928,5.5098,181.4,181.36,5.5106]
[1753002156133,1.79,181.41,181.37,3.23]
[1753002156324,1.79,181.41,181.38,3.23]
[1753002156525,7.2997,181.4,181.38,3.23]
[1753002156822,2.94646775,181.4,181.32,3.23]
[1753002157028,8.45686775,181.38,181.32,3.23]
[1753002157223,4.73646775,181.38,181.32,3.23]
[1753002157527,1.79,181.38,181.32,3.23]
[1753002157729,1.79,181.38,181.36,3.23]
[1753002157927,1.79,181.4,181.3,3.23]
[1753002158125,5.5094,181.41,181.37,5.5103]
[1753002158326,2.94646775,181.42,181.34,3.23]
[1753002158522,1.79,181.43,181.33,2.94646775]
[1753002158523,1.79,181.43,181.36,3.23]
[1753002159127,1.79,181.45,181.36,3.23]
[1753002159829,7.2982,181.45,181.42,3.23]
[1753002160026,2.94646775,181.44,181.36,3.23]
[1753002160227,5.5091,181.42,181.38,5.5102]
[1753002160426,7.2991,181.42,181.39,3.23]
[1753002160625,7.2991,181.42,181.4,3.23]
[1753002160828,5.5098,181.4,181.35,5.5109]
[1753002161032,1.79,181.39,181.37,3.23]
[1753002161230,1.79,181.39,181.32,3.23]
[1753002161531,7.3,181.39,181.37,3.23]
[1753002162534,1.79,181.39,181.36,5.5108]
[1753002162832,10.24616775,181.4,181.38,3.23]
[1753002163732,4.73646775,181.4,181.38,3.23]
[1753002163933,1.79,181.43,181.39,3.23]
[1753002164433,1.79,181.46,181.39,3.23]
[1753002164934,1.79,181.44,181.41,3.23]
[1753002165135,2.94646775,181.46,181.36,3.23]
[1753002165431,1.79,181.48,181.44,5.5082]
[1753002165631,1.79,181.48,181.46,3.23]
[1753002166033,7.2974,181.48,181.46,3.23]
[1753002166930,370.48,181.51,181.31,11.0243]
[1753002166931,1.79,181.46,181.44,3.23]
[1753002167736,1.79,181.47,181.45,3.23]
[1753002167936,2.94646775,181.47,181.43,3.23]
[1753002168339,1.79,181.45,181.43,3.23]
[1753002169628,5.5079,181.46,181.44,3.23]
[1753002169829,370.48,181.51,181.45,3.23]
[1753002170037,7.2968,181.5,181.47,3.23]
[1753002170232,1.79,181.5,181.48,3.23]
[1753002170940,7.2967,181.5,181.48,3.23]
[1753002171635,5.5069,181.49,181.48,3.23]
[1753002171836,1.79,181.5,181.48,3.23]
[1753002172339,4.73646775,181.52,181.42,3.23]
[1753002172837,2.94646775,181.53,181.44,3.23]
[1753002173038,4.73646775,181.53,181.44,3.23]
[1753002173738,5.5065,181.51,181.44,3.23]
[1753002174238,5.5065,181.51,181.47,5.5075]
[1753002174436,5.5065,181.51,181.48,3.23]
[1753002174637,5.5065,181.51,181.49,3.23]
[1753002175036,7.2965,181.51,181.49,3.23]
[1753002175942,1.79,181.51,181.49,3.23]
[1753002176738,1.79,181.5,181.4,2.94646775]
[1753002176938,4.73646775,181.49,181.41,3.23]
[1753002177339,4.73646775,181.49,181.45,5.5081]
[1753002177539,5.5067,181.5,181.46,3.23]
[1753002177735,7.2967,181.5,181.46,3.23]
[1753002177941,5.5072,181.48,181.35,381.4619]
[1753002178138,5.5072,181.48,181.39,2.94646775]
[1753002178139,3.0,181.48,181.39,2.94646775]
[1753002178645,2.94646775,181.48,181.39,2.94646775]
[1753002178938,3.0,181.47,181.39,2.94646775]
[1753002179142,2.94646775,181.5,181.39,2.94646775]
[1753002179343,3.0,181.49,181.39,2.94646775]
[1753002179543,3.0,181.49,181.41,2.94646775]
[1753002179743,2.94646775,181.51,181.41,2.94646775]
[1753002179944,5.5071,181.49,181.45,5.5081]
[1753002180140,3.0,181.5,181.46,3.17]
[1753002180536,3.0,181.51,181.37,3.17]
[1753002180743,3.0,181.51,181.42,3.17]
[1753002181146,8.5065,181.51,181.42,3.17]
[1753002181642,3.0,181.51,181.43,2.94646775]
[1753002181839,3.0,181.51,181.44,3.17]
[1753002182041,3.0,181.54,181.46,3.17]
[1753002182245,3.0,181.53,181.47,3.17]
[1753002182648,3.0,181.49,181.46,3.17]
[1753002182848,3.0,181.48,181.46,3.17]
[1753002183049,3.0,181.48,181.47,3.17]
[1753002183646,2.94646775,181.52,181.47,3.17]
[1753002183844,5.5064,181.51,181.47,3.17]
[1753002184042,3.0,181.5,181.42,3.17]
[1753002184349,3.0,181.51,181.5,3.17]
[1753002184949,2.94646775,181.55,181.5,3.17]
[1753002185244,3.0,181.53,181.51,3.17]
[1753002185439,3.0,181.54,181.51,3.17]
[1753002185839,3.0,181.54,181.49,3.17]
[1753002186043,3.0,181.52,181.5,3.17]
[1753002186750,8.45196775,181.54,181.5,3.17]
[1753002186751,3.0,181.51,181.5,3.17]
[1753002186949,2.94646775,181.55,181.5,3.17]
[1753002187151,3.0,181.54,181.5,3.17]
[1753002187649,3.0,181.56,181.5,3.17]
[1753002188049,8.45106775,181.57,181.51,5.5062]
[1753002188246,3.0,181.55,181.53,3.17]
[1753002188546,3.0,181.54,181.53,3.17]
[1753002189148,3.0,181.54,181.51,5.5062]
[1753002189350,3.0,181.54,181.52,3.17]
[1753002190458,3.0,181.53,181.52,3.17]
[1753002191048,3.0,181.54,181.51,3.17]
[1753002191250,3.0,181.52,181.44,3.17]
[1753002191557,3.0,181.5,181.47,5.5074]
[1753002191756,3.0,181.52,181.43,3.17]
[1753002191959,3.0,181.52,181.43,6.11646775]
[1753002192251,3.0,181.51,181.49,3.17]
[1753002192550,2.94646775,181.53,181.48,3.17]
[1753002192853,3.0,181.49,181.48,3.17]
[1753002193056,3.0,181.52,181.48,3.17]
[1753002193251,3.0,181.52,181.48,5.507]
[1753002193455,3.0,181.51,181.5,3.17]
[1753002194356,3.0,181.51,181.48,8.6771]
[1753002194557,3.0,181.51,181.37,11.0207]
[1753002194558,3.0,181.52,181.49,3.17]
[1753002194757,3.0,181.52,181.47,5.5074]
[1753002194952,3.0,181.59,181.45,2.94646775]
[1753002195157,3.0,181.55,181.5,8.6764]
[1753002195556,5.5053,181.55,181.51,3.17]
[1753002195755,3.0,181.53,181.51,8.6763]
[1753002196359,2.94646775,181.54,181.49,3.17]
[1753002196566,3.0,181.53,181.49,3.17]
[1753002196759,3.0,181.53,181.45,3.17]
[1753002197761,3.0,181.55,181.47,3.17]
[1753002198163,3.0,181.55,181.48,2.94646775]
[1753002198361,3.0,181.55,181.49,3.17]
[1753002198556,3.0,181.55,181.39,2.94646775]
[1753002198557,5.94646775,181.54,181.48,3.17]
[1753002198865,3.0,181.53,181.49,3.17]
[1753002199162,3.0,181.53,181.51,3.17]
[1753002199366,2.94646775,181.54,181.51,3.17]
[1753002199560,3.0,181.52,181.51,3.17]
[1753002199960,3.0,181.52,181.49,5.5068]
[1753002200360,3.0,181.54,181.44,2.94646775]
[1753002200561,3.0,181.54,181.46,6.11646775]
[1753002200761,3.0,181.54,181.47,3.17]
[1753002200962,3.0,181.57,181.49,3.17]
[1753002201164,3.0,181.57,181.5,3.17]
[1753002201458,3.0,181.56,181.53,5.5055]
[1753002201663,3.0,181.55,181.54,3.17]
[1753002202065,3.0,181.54,181.52,8.6759]
[1753002202262,3.0,181.54,181.53,3.17]
[1753002203563,1.80247716,181.54,181.52,3.17]
[1753002203760,1.80247716,181.54,181.5,3.17]
[1753002203761,3.0,181.53,181.5,3.17]
[1753002203966,3.0,181.52,181.5,3.17]
[1753002204164,3.0,181.54,181.51,3.17]
[1753002204362,3.0,181.53,181.51,3.17]
[1753002204564,3.0,181.52,181.51,3.17]
[1753002204760,3.0,181.52,181.48,3.17]
[1753002204761,3.0,181.51,181.48,3.17]
[1753002204967,3.0,181.5,181.49,3.17]
[1753002205572,3.0,181.52,181.5,3.17]
[1753002205765,3.0,181.52,181.51,3.17]
[1753002205964,3.0,181.52,181.49,3.17]
[1753002206162,3.0,181.55,181.44,3.17]
[1753002206366,3.0,181.5,181.44,3.17]
[1753002206767,3.0,181.48,181.45,3.17]
[1753002206971,3.0,181.47,181.46,3.17]
[1753002207270,4.80247716,181.52,181.45,1.80247716]
[1753002207469,4.80247716,181.52,181.46,3.17]
[1753002207871,1.80247716,181.53,181.49,3.17]
[1753002208071,4.86247716,181.53,181.46,2.99]
[1753002208265,1.80247716,181.51,181.46,2.99]
[1753002208466,3.06,181.5,181.46,2.99]
[1753002208768,1.80247716,181.51,181.49,2.99]
[1753002208967,4.86247716,181.53,181.5,2.99]
[1753002209271,4.86247716,181.53,181.46,2.99]
[1753002209272,3.06,181.53,181.46,2.99]
[1753002209568,3.06,181.53,181.48,2.99]
[1753002210169,3.06,181.53,181.52,5.5065]
[1753002210369,1.80247716,181.54,181.46,1.80247716]
[1753002210562,1.80247716,181.54,181.47,7.26755347]
[1753002210762,3.06,181.53,181.51,2.99]
[1753002211068,120.06090612,181.6,181.51,2.99]
[1753002211069,3.06,181.56,181.51,2.99]
[1753002211373,3.06,181.55,181.54,2.99]
[1753002211966,3.06,181.54,181.53,2.99]
[1753002212172,3.06,181.54,181.47,2.99]
[1753002212379,6.88090612,181.6,181.49,2.99]
[1753002212380,3.06,181.52,181.49,2.99]
[1753002212672,3.06,181.52,181.5,8.4968]
[1753002212873,3.06,181.51,181.5,2.99]
[1753002213874,1.80247716,181.53,181.49,2.99]
[1753002214078,3.06,181.52,181.5,2.99]
[1753002214278,3.06,181.51,181.48,2.99]
[1753002214478,3.06,181.5,181.48,2.99]
[1753002215178,3.06,181.5,181.44,1.80247716]
[1753002215386,3.06,181.5,181.49,2.99]
[1753002216580,3.06,181.5,181.44,1.80247716]
[1753002216883,3.06,181.48,181.46,2.99]
[1753002217085,3.06,181.47,181.46,2.99]
[1753002217284,3.06,181.47,181.42,1.80247716]
[1753002217585,3.06,181.46,181.45,2.99]
[1753002217880,1.80247716,181.49,181.45,7.27308149]
[1753002218084,3.06,181.47,181.45,2.99]
[1753002218482,3.06,181.45,181.39,2.99]
[1753002218683,1.80247716,181.53,181.4,4.2845318]
[1753002218684,3.06,181.43,181.4,4.2845318]
[1753002218883,3.06,181.41,181.34,2.99]
[1753002219082,1.80247716,181.41,181.35,4.28800609]
[1753002219281,3.06,181.39,181.37,2.99]
[1753002219582,3.06,181.39,181.37,8.501]
[1753002220281,1.80247716,181.4,181.36,5.5113]
[1753002220487,3.06,181.37,181.36,5.5113]
[1753002220687,3.06,181.37,181.36,8.5013]
[1753002220885,3.06,181.36,181.26,4.48414686]
[1753002221084,1.80247716,181.44,181.24,370.28]
[1753002221085,1.80247716,181.33,181.28,2.99]
[1753002221278,3.06,181.3,181.28,2.99]
[1753002221482,1.80247716,181.31,181.28,2.99]
[1753002221685,1.80247716,181.31,181.29,2.99]
[1753002221880,1.80247716,181.35,181.32,5.5125]
[1753002222080,3.06,181.35,181.27,1.80247716]
[1753002222282,4.86247716,181.35,181.28,2.99]
[1753002222482,1.80247716,181.35,181.31,5.5129]
[1753002222784,3.06,181.32,181.26,2.99]
[1753002222984,5.5117,181.35,181.3,5.5131]
[1753002222985,3.06,181.31,181.3,5.5131]
[1753002223288,3.06,181.31,181.29,2.99]
[1753002223687,3.06,181.31,181.24,2.99]
[1753002223879,3.06,181.33,181.24,2.99]
[1753002224886,3.06,181.32,181.31,5.5126]
[1753002225187,6.00552563,181.34,181.31,2.99]
[1753002225387,3.06,181.33,181.27,2.99]
[1753002225782,3.06,181.33,181.31,5.5126]
[1753002225988,3.06,181.33,181.27,2.99]
[1753002226487,13.96002563,181.5,181.25,2.94552563]
[1753002226695,3.06,181.35,181.27,2.99]
[1753002226894,3.06,181.35,181.28,2.94552563]
[1753002227193,3.06,181.36,181.35,5.5115]
[1753002227592,3.06,181.36,181.33,5.512]
[1753002227793,3.06,181.34,181.33,5.512]
[1753002228188,3.06,181.36,181.34,5.5119]
[1753002228389,3.06,181.36,181.34,2.99]
[1753002228693,2.94552563,181.36,181.28,2.99]
[1753002228895,3.06,181.35,181.31,5.5126]
[1753002229295,3.06,181.35,181.3,5.5129]
[1753002229493,3.06,181.35,181.29,2.99]
[1753002229889,3.06,181.34,181.32,2.99]
[1753002230088,3.06,181.34,181.33,2.99]
[1753002230394,3.06,181.34,181.31,5.5127]
[1753002230595,3.06,181.34,181.32,2.99]
[1753002230986,3.06,181.34,181.33,5.5123]
[1753002231689,3.06,181.34,181.33,8.5023]
[1753002232790,3.06,181.33,181.31,2.99]
[1753002232986,2.94552563,181.37,181.32,2.99]
[1753002233190,3.06,181.35,181.3,5.5131]
[1753002233492,3.06,181.34,181.3,2.99]
[1753002234090,3.06,181.34,181.29,8.5033]
[1753002234493,3.06,181.33,181.29,8.5033]
[1753002234687,6.00552563,181.33,181.29,2.99]
[1753002234892,2.94552563,181.33,181.29,2.99]
[1753002235090,3.06,181.32,181.27,2.99]
[1753002235299,3.06,181.3,181.26,8.5041]
[1753002235992,3.06,181.3,181.26,2.99]
[1753002236795,3.06,181.3,181.22,2.99]
[1753002237100,3.06,181.29,181.22,2.99]
[1753002237598,3.06,181.29,181.27,2.99]
[1753002237798,3.06,181.28,181.27,2.99]
[1753002239001,3.09,181.3,181.27,2.99]
[1753002239199,3.09,181.29,181.27,2.99]
[1753002239548,3.09,181.28,181.22,3.01]
[1753002239600,3.09,181.26,181.22,3.01]
[1753002240101,3.09,181.25,181.22,3.01]
[1753002240298,6.03552563,181.26,181.17,3.01]
[1753002240700,2.94552563,181.26,181.17,3.01]
[1753002241002,3.09,181.25,181.17,3.01]
[1753002241405,3.09,181.25,181.18,3.01]
[1753002241705,16.53,181.34,181.19,3.01]
[1753002241706,6.03552563,181.24,181.19,3.01]
[1753002241900,3.09,181.21,181.14,3.01]
[1753002242202,2.94552563,181.16,181.04,370.7]
[1753002242397,3.09,181.15,181.06,3.01]
[1753002242604,8.6078,181.15,181.06,3.01]
[1753002242805,3.09,181.14,181.06,3.01]
[1753002242996,6.03552563,181.14,181.06,3.01]
[1753002243200,3.09,181.13,181.08,5.5197]
[1753002243397,3.09,181.13,181.08,3.01]
[1753002243598,3.09,181.13,181.11,5.5189]
[1753002243803,2.94552563,181.15,181.03,318.43340077]
[1753002244005,3.09,181.14,181.06,3.01]
[1753002244404,6.03552563,181.14,181.06,3.01]
[1753002244605,3.09,181.13,181.06,3.01]
[1753002244805,3.09,181.12,181.06,3.01]
[1753002245403,6.03552563,181.12,181.06,3.01]
[1753002245604,3.09,181.11,181.06,3.01]
[1753002245798,3.09,181.11,181.04,3.01]
[1753002245799,3.09,181.1,181.04,3.01]
[1753002246505,3.09,181.09,181.0,3.01]
[1753002246700,3.09,181.07,181.0,3.01]
[1753002246905,19.47552563,181.17,180.99,113.98]
[1753002246906,1.81168361,181.12,181.03,4.82168361]
[1753002247105,115.69168361,181.17,181.04,3.01]
[1753002247106,1.81168361,181.1,181.04,3.01]
[1753002247300,1.81168361,181.1,181.02,1.81168361]
[1753002247496,115.69168361,181.17,181.01,3.01]
[1753002247497,3.09,181.07,181.01,3.01]
[1753002247700,4.90168361,181.07,181.01,3.01]
[1753002247896,4.90168361,181.07,180.99,115.79168361]
[1753002247897,3.09,181.06,181.04,8.531]
[1753002248298,3.09,181.05,181.04,8.531]
[1753002248501,3.09,181.07,181.05,3.01]
[1753002248706,370.7,181.22,181.05,3.01]
[1753002248707,3.09,181.16,181.05,1.81168361]
[1753002248900,3.09,181.13,181.06,3.01]
[1753002249506,3.09,181.13,181.11,5.5189]
[1753002249716,3.09,181.13,181.11,8.5289]
[1753002249908,3.09,181.12,181.11,8.5289]
[1753002250108,3.09,181.12,181.11,5.5189]
[1753002250510,1.81168361,181.17,181.13,5.5183]
[1753002250812,3.09,181.16,181.09,3.01]
[1753002251209,3.09,181.16,181.1,1.81168361]
[1753002251410,3.09,181.18,181.11,3.01]
[1753002251609,1.81168361,181.17,181.12,3.01]
[1753002251810,3.09,181.16,181.1,3.01]
[1753002252212,1.81168361,181.15,181.11,5.5187]
[1753002252411,3.09,181.13,181.11,8.5287]
[1753002252607,3.09,181.13,181.0,5.522]
[1753002252608,19.62,181.11,181.0,5.522]
[1753002252813,4.90168361,181.02,180.93,1.81168361]
[1753002253007,1.81168361,181.03,180.95,1.81168361]
[1753002253212,1.81168361,181.03,181.0,3.01]
[1753002253513,1.81168361,181.03,180.99,5.5225]
[1753002253514,3.09,181.02,180.99,3.01]
[1753002253913,3.09,181.02,181.0,3.01]
[1753002255209,2.95522306,181.05,181.01,3.01]
[1753002255415,16.53,181.1,180.99,3.01]
[1753002255416,2.95522306,181.03,180.99,3.01]
[1753002255622,3.09,181.02,180.94,3.01]
[1753002255808,5.5226,180.99,180.95,3.01]
[1753002256011,3.09,180.99,180.91,3.01]
[1753002256206,3.09,180.99,180.93,5.5242]
[1753002256513,3.09,180.96,180.88,7.22809577]
[1753002256708,3.09,180.96,180.88,3.01]
[1753002257507,8.6138,180.96,180.91,5.5248]
[1753002257705,3.09,180.95,180.88,3.01]
[1753002258015,5.5244,180.94,180.89,5.5256]
[1753002258212,3.09,181.05,180.87,3.01]
[1753002258412,2.95522306,180.98,180.89,3.01]
[1753002258612,3.09,180.99,180.89,3.01]
[1753002258916,3.09,180.98,180.89,3.01]
[1753002259307,5.5237,180.96,180.92,5.5246]
[1753002259510,6.04522306,181.02,180.93,3.01]
[1753002259719,3.09,181.02,180.95,3.01]
[1753002260018,2.95522306,181.06,181.0,3.01]
[1753002260213,3.09,181.05,181.0,3.01]
[1753002260613,3.09,181.03,181.01,3.01]
[1753002260814,3.09,181.03,180.85,4.48414686]